[Event "Queens Festival Europe 2022"]
[Site "Tornelo"]
[Date "2022.06.19"]
[Round "1.5"]
[White "Bakhshizada, Asnad"]
[Black "Pyun, Lindsay"]
[Result "1-0"]
[ECO "D52"]
[WhiteElo "1052"]
[BlackElo "1526"]
[Annotator "NA RC"]
[PlyCount "125"]
[EventDate "2022.06.19"]
[EventType "swiss"]
[EventCountry "NET"]
[SourceTitle "playchess.com"]
[Source "ChessBase"]
[SourceQuality "1"]
[TimeControl "180+2"]

1. d4 {[%emt 0:00:02]} d5 {[%emt 0:00:08]} 2. c4 {[%emt 0:00:03]} c6 {[%emt 0:00:02]} 3. Nc3 {[%emt 0:00:02]} Nf6 {[%emt 0:00:03]} 4. Nf3 {[%emt 0:00:02]} e6 {[%emt 0:00:03]} 5. Bg5 {[%emt 0:00:02]} Nbd7 {[%emt 0:00:06]} 6. e3 {[%emt 0:00:04]} Qa5 {[%emt 0:00:04]} 7. cxd5 {[%emt 0:00:11]} exd5 {[%emt 0:00:12]} 8. Bd3 {[%emt 0:00:05]} Bb4 {[%emt 0:00:04]} 9. Qc2 {[%emt 0:00:05]} h6 {[%emt 0:00:12]} 10. Bf4 {[%emt 0:00:05]} O-O {[%emt 0:00:04]} 11. O-O {[%emt 0:00:05]} Nh5 {[%emt 0:00:06]} 12. Be5 {[%emt 0:00:05]} Nxe5 {[%emt 0:00:08]} 13. Nxe5 {[%emt 0:00:03]} Be6 {[%emt 0:00:12]} 14. a3 {[%emt 0:00:06]} Bd6 {[%emt 0:00:02]} 15. f4 {[%emt 0:00:04]} Qc7 {[%emt 0:00:18]} 16. Rac1 {[%emt 0:00:23]} Rac8 {[%emt 0:00:07]} 17. Qe2 {[%emt 0:00:12]} Nf6 {[%emt 0:00:04]} 18. Nb5 {[%emt 0:00:21]} Qb8 {[%emt 0:00:11]} 19. Nxd6 {[%emt 0:00:03]} Qxd6 {[%emt 0:00:02]} 20. Bb1 {[%emt 0:00:08]} Nd7 {[%emt 0:00:08]} 21. f5 {[%emt 0:00:19]} Nxe5 {[%emt 0:00:17]} 22. dxe5 {[%emt 0:00:05]} Qxe5 {[%emt 0:00:05]} 23. fxe6 {[%emt 0:00:03]} Qxe6 {[%emt 0:00:01]} 24. Bf5 {[%emt 0:00:04]} Qe5 {[%emt 0:00:05]} 25. Bxc8 {[%emt 0:00:02]} Rxc8 {[%emt 0:00:00]} 26. Qf3 {[%emt 0:00:07]} Qe6 {[%emt 0:00:06]} 27. Qh3 {[%emt 0:00:06]} Qxh3 {[%emt 0:00:05]} 28. gxh3 {[%emt 0:00:02]} Re8 {[%emt 0:00:00]} 29. Rf3 {[%emt 0:00:02]} f6 {[%emt 0:00:01]} 30. Kf2 {[%emt 0:00:04]} Re4 {[%emt 0:00:01]} 31. Rg3 {[%emt 0:00:04]} Kf7 {[%emt 0:00:02]} 32. Rcg1 {[%emt 0:00:03]} g5 {[%emt 0:00:02]} 33. Ke2 {[%emt 0:00:03]} h5 {[%emt 0:00:01]} 34. Rf3 {[%emt 0:00:03]} h4 {[%emt 0:00:05]} 35. Rxg5 {[%emt 0:00:04]} Ke7 {[%emt 0:00:04]} 36. Rg7+ {[%emt 0:00:03]} Ke6 {[%emt 0:00:01]} 37. Rxb7 {[%emt 0:00:03]} Ra4 {[%emt 0:00:03]} 38. Rc7 {[%emt 0:00:03]} Kd6 {[%emt 0:00:04]} 39. Rh7 {[%emt 0:00:02]} Ke6 {[%emt 0:00:02]} 40. Rh6 {[%emt 0:00:04]} Ke7 {[%emt 0:00:07]} 41. Rfxf6 {[%emt 0:00:02]} c5 {[%emt 0:00:04]} 42. Ra6 {[%emt 0:00:04]} Rxa6 {[%emt 0:00:04]} 43. Rxa6 {[%emt 0:00:03]} Kd7 {[%emt 0:00:00]} 44. Rxa7+ {[%emt 0:00:02]} Kc6 {[%emt 0:00:01]} 45. Ra8 {[%emt 0:00:02]} Kd6 {[%emt 0:00:00]} 46. Rh8 {[%emt 0:00:02]} Ke5 {[%emt 0:00:00]} 47. Rxh4 {[%emt 0:00:02]} Kd6 {[%emt 0:00:02]} 48. Kd3 {[%emt 0:00:02]} Ke6 {[%emt 0:00:01]} 49. Rg4 {[%emt 0:00:02]} Ke5 {[%emt 0:00:00]} 50. h4 {[%emt 0:00:01]} Kd6 {[%emt 0:00:00]} 51. h5 {[%emt 0:00:02]} Ke6 {[%emt 0:00:00]} 52. h6 {[%emt 0:00:02]} Kf5 {[%emt 0:00:00]} 53. Rg1 {[%emt 0:00:02]} Kf6 {[%emt 0:00:02]} 54. h7 {[%emt 0:00:02]} c4+ {[%emt 0:00:04]} 55. Kc2 {[%emt 0:00:05]} d4 {[%emt 0:00:01]} 56. h8=Q+ {[%emt 0:00:03]} Ke6 {[%emt 0:00:03]} 57. Rg6+ {[%emt 0:00:03]} Kf5 {[%emt 0:00:03]} 58. Qf6+ {[%emt 0:00:03]} Ke4 {[%emt 0:00:03]} 59. Qe6+ {[%emt 0:00:06]} Kf3 {[%emt 0:00:02]} 60. Rg3+ {[%emt 0:00:03]} Ke2 {[%emt 0:00:03]} 61. Qg4+ {[%emt 0:00:03]} Kf1 {[%emt 0:00:05]} 62. Qf3+ {[%emt 0:00:06]} Ke1 {[%emt 0:00:03]} 63. Rg1# {[%emt 0:00:02]} 1-0

[Event "Queens Festival Europe 2022"]
[Site "Tornelo"]
[Date "2022.06.19"]
[Round "1.6"]
[White "Head, Louise"]
[Black "Sikorova, Olga"]
[Result "1-0"]
[ECO "E73"]
[WhiteElo "2025"]
[BlackElo "2173"]
[Annotator "TA"]
[PlyCount "43"]
[EventDate "2022.06.19"]
[EventType "swiss"]
[EventCountry "NET"]
[SourceTitle "playchess.com"]
[Source "ChessBase"]
[SourceQuality "1"]
[TimeControl "180+2"]

{[%evp 11,43,55,50,9,60,48,36,50,63,47,47,38,36,37,46,30,66,55,50,80,58,53,226,215,296,140,163,21,494,445,1136,1129,2320,2182]} 1. d4 {[%emt 0:00:02]} Nf6 {[%emt 0:00:05]} 2. c4 {[%emt 0:00:02]} g6 {[%emt 0:00:02]} 3. Nc3 {[%emt 0:00:03]} Bg7 {[%emt 0:00:01]} 4. e4 {[%emt 0:00:02]} O-O {[%emt 0:00:02]} 5. Be3 {[%emt 0:00:02]} d6 {[%emt 0:00:03]} 6. Be2 {[%emt 0:00:02]} c6 {[%emt 0:00:08]} 7. g4 {[%emt 0:00:04] E73: King's Indian: Averbakh Variation without 6...c5.} e5 {[%emt 0:00:05]} ({Black should play} 7... c5 $11) 8. d5 $1 $14 {[%emt 0:00:01]} cxd5 {[%emt 0:00:03]} 9. cxd5 {[%emt 0:00:02] White is slightly better.} Nbd7 {[%emt 0:00:04]} 10. g5 {[%emt 0:00:02] White is more active.} Ne8 {[%emt 0:00:04]} 11. h4 {[%emt 0:00:03]} f5 {[%emt 0:00:11]} 12. gxf6 {[%emt 0:00:03] [#]} Ndxf6 $146 {[%emt 0:00:12]} ({Predecessor:} 12... Nexf6 13. h5 Nc5 14. Bxc5 dxc5 15. hxg6 hxg6 16. Qb3 Re8 17. O-O-O Kf8 18. Rd3 a6 {½-½ (48) Eidelmann,V (2024)-Zelkind,E (2276) Halle 2004}) 13. h5 {[%emt 0:00:01]} gxh5 {[%emt 0:00:05]} 14. Bxh5 {[%emt 0:00:08]} Nxh5 {[%emt 0:00:03]} 15. Qxh5 {[%emt 0:00:05]} Nf6 {[%emt 0:00:02]} 16. Qh4 {[%emt 0:00:04]} Rf7 $2 {[%emt 0:00:10] [#]} (16... Bg4 $1 $14) 17. Nf3 $1 $18 {[%emt 0:00:07]} Bf8 {[%emt 0:00:09]} 18. Ng5 {[%emt 0:00:01]} (18. O-O-O $18) 18... Rg7 $16 {[%emt 0:00:02]} 19. O-O-O {[%emt 0:00:07]} (19. Ne6 $18 Bxe6 20. dxe6) 19... Bg4 $2 {[%emt 0:00:30][%mdl 8192]} (19... Ng4 $1 $11 {and Black stays safe.} 20. Rdg1 Be7) 20. Rdg1 $18 {[%emt 0:00:03] Hoping for Ne6. White is clearly winning.} Bh5 {[%emt 0:00:01]} (20... Qe8 $142 21. f3 Rc8 22. fxg4 Qg6) 21. Ne6 {[%emt 0:00:03][%csl LRd8,LRg7] Pair of Knights!} Bg6 {[%emt 0:00:03]} 22. Nxd8 {[%emt 0:00:03] Weighted Error Value: White=0.28 (precise) /Black=0.97} 1-0

[Event "Queens Festival Europe 2022"]
[Site "Tornelo"]
[Date "2022.06.19"]
[Round "1.6"]
[White "Can, Isil"]
[Black "Shabanaj, Eglantina"]
[Result "1-0"]
[ECO "C01"]
[WhiteElo "1901"]
[BlackElo "1986"]
[Annotator "NA RC"]
[PlyCount "55"]
[EventDate "2022.06.19"]
[EventType "swiss"]
[EventCountry "NET"]
[SourceTitle "playchess.com"]
[Source "ChessBase"]
[SourceQuality "1"]
[TimeControl "180+2"]

1. e4 {[%emt 0:00:02]} e6 {[%emt 0:00:07]} 2. d4 {[%emt 0:00:07]} d5 {[%emt 0:00:04]} 3. exd5 {[%emt 0:00:01]} exd5 {[%emt 0:00:05]} 4. Bd3 {[%emt 0:00:02]} Bd6 {[%emt 0:00:04]} 5. Nf3 {[%emt 0:00:05]} Nf6 {[%emt 0:00:04]} 6. O-O {[%emt 0:00:04]} O-O {[%emt 0:00:03]} 7. c3 {[%emt 0:00:05]} Bg4 {[%emt 0:00:04]} 8. h3 {[%emt 0:00:10]} Bh5 {[%emt 0:00:04]} 9. Bg5 {[%emt 0:00:02]} Nbd7 {[%emt 0:00:06]} 10. Nbd2 {[%emt 0:00:03]} c6 {[%emt 0:00:05]} 11. Qc2 {[%emt 0:00:04]} Qc7 {[%emt 0:00:06]} 12. Rae1 {[%emt 0:00:06]} Rfe8 {[%emt 0:00:05]} 13. a4 {[%emt 0:00:31]} Bf4 {[%emt 0:00:14]} 14. Bxf4 {[%emt 0:00:13]} Qxf4 {[%emt 0:00:04]} 15. Nh2 {[%emt 0:00:04]} Bg6 {[%emt 0:00:10]} 16. Bxg6 {[%emt 0:00:05]} hxg6 {[%emt 0:00:04]} 17. Nhf3 {[%emt 0:00:25]} Nh7 {[%emt 0:00:35]} 18. b4 {[%emt 0:00:12]} Ndf6 {[%emt 0:00:07]} 19. Ne5 {[%emt 0:00:04]} Ng5 {[%emt 0:00:12]} 20. Re3 {[%emt 0:00:48]} Nfe4 {[%emt 0:00:17]} 21. Nxe4 {[%emt 0:00:09]} dxe4 {[%emt 0:00:06]} 22. Rfe1 {[%emt 0:00:03]} Re6 {[%emt 0:00:14]} 23. Nc4 {[%emt 0:00:03]} Rae8 {[%emt 0:00:09]} 24. Nd2 {[%emt 0:00:04]} f5 {[%emt 0:00:10]} 25. c4 {[%emt 0:00:01]} Qd6 {[%emt 0:00:10]} 26. Rg3 {[%emt 0:00:07]} Nf7 {[%emt 0:00:13]} 27. Qb2 {[%emt 0:00:04]} f4 {[%emt 0:00:05]} 28. Ra3 {[%emt 0:00:02]} 1-0

[Event "Queens Festival Europe 2022"]
[Site "Tornelo"]
[Date "2022.06.19"]
[Round "1.6"]
[White "Posadas, Rayelynn"]
[Black "van den Brink, Nienke"]
[Result "1/2-1/2"]
[ECO "A89"]
[WhiteElo "1648"]
[BlackElo "1771"]
[Annotator "NA RC"]
[PlyCount "124"]
[EventDate "2022.06.19"]
[EventType "swiss"]
[EventCountry "NET"]
[SourceTitle "playchess.com"]
[Source "ChessBase"]
[SourceQuality "1"]
[TimeControl "180+2"]

1. Nf3 {[%emt 0:00:02]} f5 {[%emt 0:00:06]} 2. d4 {[%emt 0:00:05]} d6 {[%emt 0:00:02]} 3. g3 {[%emt 0:00:05]} Nf6 {[%emt 0:00:03]} 4. Bg2 {[%emt 0:00:03]} g6 {[%emt 0:00:02]} 5. O-O {[%emt 0:00:03]} Bg7 {[%emt 0:00:03]} 6. c4 {[%emt 0:00:06]} O-O {[%emt 0:00:04]} 7. Nc3 {[%emt 0:00:03]} Nc6 {[%emt 0:00:04]} 8. b3 {[%emt 0:00:04]} Ne4 {[%emt 0:00:10]} 9. Bb2 {[%emt 0:00:04]} e5 {[%emt 0:00:08]} 10. dxe5 {[%emt 0:00:22]} Nxc3 {[%emt 0:00:10]} 11. Bxc3 {[%emt 0:00:03]} dxe5 {[%emt 0:00:09]} 12. Qc2 {[%emt 0:00:07]} Qe7 {[%emt 0:00:06]} 13. Rad1 {[%emt 0:00:06]} e4 {[%emt 0:00:05]} 14. Nd4 {[%emt 0:00:06]} Ne5 {[%emt 0:00:07]} 15. Qb2 {[%emt 0:00:23]} c5 {[%emt 0:00:07]} 16. Nb5 {[%emt 0:00:06]} a6 {[%emt 0:00:06]} 17. Nd6 {[%emt 0:00:02]} Nc6 {[%emt 0:00:15]} 18. Nxc8 {[%emt 0:00:03]} Raxc8 {[%emt 0:00:04]} 19. Bxg7 {[%emt 0:00:02]} Qxg7 {[%emt 0:00:02]} 20. Qxg7+ {[%emt 0:00:01]} Kxg7 {[%emt 0:00:02]} 21. Rd5 {[%emt 0:00:02]} Nd4 {[%emt 0:00:09]} 22. e3 {[%emt 0:00:04]} Ne2+ {[%emt 0:00:05]} 23. Kh1 {[%emt 0:00:03]} Nc3 {[%emt 0:00:05]} 24. Rd2 {[%emt 0:00:10]} b5 {[%emt 0:00:05]} 25. Rc1 {[%emt 0:00:06]} b4 {[%emt 0:00:08]} 26. a3 {[%emt 0:00:07]} a5 {[%emt 0:00:02]} 27. axb4 {[%emt 0:00:06]} axb4 {[%emt 0:00:02]} 28. Ra1 {[%emt 0:00:01]} Rfd8 {[%emt 0:00:04]} 29. Ra7+ {[%emt 0:00:03]} Kg8 {[%emt 0:00:03]} 30. Rdd7 {[%emt 0:00:04]} Rxd7 {[%emt 0:00:09]} 31. Rxd7 {[%emt 0:00:00]} Ra8 {[%emt 0:00:04]} 32. h4 {[%emt 0:00:06]} Ra2 {[%emt 0:00:09]} 33. Rc7 {[%emt 0:00:02]} Rxf2 {[%emt 0:00:17]} 34. Rxc5 {[%emt 0:00:04]} Re2 {[%emt 0:00:07]} 35. Rc8+ {[%emt 0:00:08]} Kg7 {[%emt 0:00:02]} 36. c5 {[%emt 0:00:01]} Rxe3 {[%emt 0:00:03]} 37. Kh2 {[%emt 0:00:02]} Nd5 {[%emt 0:00:05]} 38. c6 {[%emt 0:00:02]} Rxb3 {[%emt 0:00:03]} 39. Rd8 {[%emt 0:00:05]} Nc7 {[%emt 0:00:03]} 40. Rd7+ {[%emt 0:00:02]} Kf8 {[%emt 0:00:02]} 41. Rxc7 {[%emt 0:00:00]} Rc3 {[%emt 0:00:02]} 42. Rb7 {[%emt 0:00:11]} Rxc6 {[%emt 0:00:03]} 43. Rxb4 {[%emt 0:00:01]} Rc2 {[%emt 0:00:03]} 44. Rb3 {[%emt 0:00:08]} Kf7 {[%emt 0:00:02]} 45. Kg1 {[%emt 0:00:03]} Kf6 {[%emt 0:00:03]} 46. Re3 {[%emt 0:00:07]} Ke5 {[%emt 0:00:04]} 47. Bf1 {[%emt 0:00:01]} Kd4 {[%emt 0:00:05]} 48. Re2 {[%emt 0:00:02]} Rc1 {[%emt 0:00:03]} 49. Kf2 {[%emt 0:00:01]} h6 {[%emt 0:00:04]} 50. Ra2 {[%emt 0:00:05]} Rc3 {[%emt 0:00:03]} 51. Be2 {[%emt 0:00:04]} e3+ {[%emt 0:00:03]} 52. Kf3 {[%emt 0:00:02]} Ke5 {[%emt 0:00:04]} 53. Ra5+ {[%emt 0:00:02]} Kd4 {[%emt 0:00:02]} 54. Ra6 {[%emt 0:00:02]} g5 {[%emt 0:00:03]} 55. hxg5 {[%emt 0:00:02]} hxg5 {[%emt 0:00:02]} 56. Ra4+ {[%emt 0:00:01]} Ke5 {[%emt 0:00:02]} 57. Rb4 {[%emt 0:00:07]} g4+ {[%emt 0:00:05]} 58. Kg2 {[%emt 0:00:06]} Rc2 {[%emt 0:00:01]} 59. Kf1 {[%emt 0:00:02]} Rc1+ {[%emt 0:00:03]} 60. Kg2 {[%emt 0:00:01]} Rc2 {[%emt 0:00:01]} 61. Kf1 {[%emt 0:00:16]} Rc1+ {[%emt 0:00:01]} 62. Kg2 {[%emt 0:00:09]} Rc2 {[%emt 0:00:02]} 1/2-1/2

[Event "Queens Festival Europe 2022"]
[Site "Tornelo"]
[Date "2022.06.19"]
[Round "1.6"]
[White "Strnadova, Monika"]
[Black "Malaieru, Alexandra-Gabriela"]
[Result "1-0"]
[ECO "C42"]
[WhiteElo "1518"]
[BlackElo "1129"]
[Annotator "NA RC"]
[PlyCount "51"]
[EventDate "2022.06.19"]
[EventType "swiss"]
[EventCountry "NET"]
[SourceTitle "playchess.com"]
[Source "ChessBase"]
[SourceQuality "1"]
[TimeControl "180+2"]

1. e4 {[%emt 0:00:02]} e5 {[%emt 0:00:11]} 2. Nf3 {[%emt 0:00:04]} Nf6 {[%emt 0:00:02]} 3. Nxe5 {[%emt 0:00:03]} d6 {[%emt 0:00:02]} 4. Nf3 {[%emt 0:00:03]} Nxe4 {[%emt 0:00:02]} 5. d3 {[%emt 0:00:20]} Nf6 {[%emt 0:00:04]} 6. Bg5 {[%emt 0:00:03]} Be7 {[%emt 0:00:02]} 7. Nc3 {[%emt 0:00:04]} O-O {[%emt 0:00:04]} 8. Be2 {[%emt 0:00:07]} Bf5 {[%emt 0:00:10]} 9. O-O {[%emt 0:00:03]} h6 {[%emt 0:00:04]} 10. Bh4 {[%emt 0:00:10]} Nc6 {[%emt 0:00:11]} 11. a3 {[%emt 0:00:13]} Qd7 {[%emt 0:00:12]} 12. d4 {[%emt 0:00:11]} Ne4 {[%emt 0:00:24]} 13. Bxe7 {[%emt 0:00:06]} Qxe7 {[%emt 0:00:03]} 14. Nd5 {[%emt 0:00:10]} Qd7 {[%emt 0:00:25]} 15. Nh4 {[%emt 0:00:11]} Be6 {[%emt 0:00:18]} 16. Nf4 {[%emt 0:00:11]} Qe7 {[%emt 0:00:24]} 17. Nxe6 {[%emt 0:00:08]} fxe6 {[%emt 0:00:11]} 18. Nf3 {[%emt 0:00:06]} Qf6 {[%emt 0:00:10]} 19. d5 {[%emt 0:00:07]} Ne5 {[%emt 0:00:20]} 20. dxe6 {[%emt 0:00:05]} Qxe6 {[%emt 0:00:09]} 21. Nd4 {[%emt 0:00:05]} Qg6 {[%emt 0:00:09]} 22. Bh5 {[%emt 0:00:09]} Qg5 {[%emt 0:00:03]} 23. Ne6 {[%emt 0:00:04]} Qf6 {[%emt 0:00:02]} 24. Nxf8 {[%emt 0:00:03]} Qxf8 {[%emt 0:00:02]} 25. Qd5+ {[%emt 0:00:03]} Kh8 {[%emt 0:00:03]} 26. Qxe4 {[%emt 0:00:03]} 1-0

[Event "Queens Festival Europe 2022"]
[Site "Tornelo"]
[Date "2022.06.19"]
[Round "1.7"]
[White "Machlik, Monika"]
[Black "Ayzenberg, Alena"]
[Result "1-0"]
[ECO "E48"]
[WhiteElo "2134"]
[BlackElo "2016"]
[Annotator "NA RC"]
[PlyCount "45"]
[EventDate "2022.06.19"]
[EventType "swiss"]
[EventCountry "NET"]
[SourceTitle "playchess.com"]
[Source "ChessBase"]
[SourceQuality "1"]
[TimeControl "180+2"]

1. d4 {[%emt 0:00:02]} Nf6 {[%emt 0:00:05]} 2. c4 {[%emt 0:00:02]} e6 {[%emt 0:00:02]} 3. Nc3 {[%emt 0:00:02]} Bb4 {[%emt 0:00:03]} 4. e3 {[%emt 0:00:02]} c5 {[%emt 0:00:05]} 5. Bd3 {[%emt 0:00:03]} Nc6 {[%emt 0:00:06]} 6. Nge2 {[%emt 0:00:27]} cxd4 {[%emt 0:00:12]} 7. exd4 {[%emt 0:00:02]} d5 {[%emt 0:00:10]} 8. O-O {[%emt 0:00:05]} dxc4 {[%emt 0:00:11]} 9. Bxc4 {[%emt 0:00:02]} O-O {[%emt 0:00:07]} 10. Bg5 {[%emt 0:00:03]} h6 {[%emt 0:00:08]} 11. Bh4 {[%emt 0:00:04]} Be7 {[%emt 0:00:12]} 12. Qd2 {[%emt 0:00:18]} b6 {[%emt 0:00:17]} 13. Rfd1 {[%emt 0:00:09]} Na5 {[%emt 0:00:13]} 14. Bd3 {[%emt 0:00:11]} Bb7 {[%emt 0:00:09]} 15. Rac1 {[%emt 0:00:05]} Rc8 {[%emt 0:00:03]} 16. Bb1 {[%emt 0:00:08]} Nc4 {[%emt 0:00:31]} 17. Qc2 {[%emt 0:00:12]} Nd6 {[%emt 0:00:13]} 18. Bxf6 {[%emt 0:00:27]} Be4 {[%emt 0:00:02]} 19. Bxe7 {[%emt 0:00:14]} Bxc2 {[%emt 0:00:03]} 20. Bxd8 {[%emt 0:00:02]} Bxd1 {[%emt 0:00:03]} 21. Be7 {[%emt 0:00:10]} Bxe2 {[%emt 0:00:43]} 22. Bxf8 {[%emt 0:00:02]} Bh5 {[%emt 0:00:06]} 23. Bxd6 {[%emt 0:00:03]} 1-0

[Event "Queens Festival Europe 2022"]
[Site "Tornelo"]
[Date "2022.06.19"]
[Round "1.7"]
[White "Lampard, Alice"]
[Black "Subramanian, Anusha"]
[Result "1-0"]
[ECO "D18"]
[WhiteElo "1756"]
[BlackElo "1671"]
[Annotator "NA RC"]
[PlyCount "147"]
[EventDate "2022.06.19"]
[EventType "swiss"]
[EventCountry "NET"]
[SourceTitle "playchess.com"]
[Source "ChessBase"]
[SourceQuality "1"]
[TimeControl "180+2"]

1. d4 {[%emt 0:00:02]} d5 {[%emt 0:00:05]} 2. c4 {[%emt 0:00:03]} c6 {[%emt 0:00:01]} 3. Nc3 {[%emt 0:00:04]} Nf6 {[%emt 0:00:02]} 4. Nf3 {[%emt 0:00:05]} dxc4 {[%emt 0:00:01]} 5. a4 {[%emt 0:00:10]} Bf5 {[%emt 0:00:02]} 6. e3 {[%emt 0:00:06]} e6 {[%emt 0:00:02]} 7. Bxc4 {[%emt 0:00:03]} Bb4 {[%emt 0:00:02]} 8. O-O {[%emt 0:00:04]} O-O {[%emt 0:00:01]} 9. Nh4 {[%emt 0:00:11]} Bg4 {[%emt 0:00:10]} 10. f3 {[%emt 0:00:08]} Bh5 {[%emt 0:00:02]} 11. g4 {[%emt 0:00:09]} Bg6 {[%emt 0:00:03]} 12. Nxg6 {[%emt 0:00:02]} hxg6 {[%emt 0:00:02]} 13. Bd2 {[%emt 0:00:11]} Nbd7 {[%emt 0:00:08]} 14. Ne2 {[%emt 0:00:17]} Bxd2 {[%emt 0:00:07]} 15. Qxd2 {[%emt 0:00:00]} Nb6 {[%emt 0:00:01]} 16. Bb3 {[%emt 0:00:09]} c5 {[%emt 0:00:02]} 17. a5 {[%emt 0:00:07]} Nc8 {[%emt 0:00:15]} 18. Rfd1 {[%emt 0:00:07]} cxd4 {[%emt 0:00:04]} 19. Qxd4 {[%emt 0:00:03]} Ne7 {[%emt 0:00:08]} 20. g5 {[%emt 0:00:18]} Nh7 {[%emt 0:00:25]} 21. h4 {[%emt 0:00:11]} Nc6 {[%emt 0:00:44]} 22. Qg4 {[%emt 0:00:10]} Qe7 {[%emt 0:00:06]} 23. Nd4 {[%emt 0:00:02]} Nxd4 {[%emt 0:00:11]} 24. Rxd4 {[%emt 0:00:01]} Rfd8 {[%emt 0:00:02]} 25. Rad1 {[%emt 0:00:02]} Rxd4 {[%emt 0:00:04]} 26. Qxd4 {[%emt 0:00:02]} Qc7 {[%emt 0:00:12]} 27. Qg4 {[%emt 0:00:10]} Rd8 {[%emt 0:00:03]} 28. f4 {[%emt 0:00:04]} Rxd1+ {[%emt 0:00:17]} 29. Qxd1 {[%emt 0:00:03]} Qxa5 {[%emt 0:00:07]} 30. Kf2 {[%emt 0:00:07]} Qb6 {[%emt 0:00:04]} 31. Qd3 {[%emt 0:00:06]} Nf8 {[%emt 0:00:07]} 32. Qc3 {[%emt 0:00:07]} Qc6 {[%emt 0:00:03]} 33. Qxc6 {[%emt 0:00:02]} bxc6 {[%emt 0:00:00]} 34. Ba4 {[%emt 0:00:01]} c5 {[%emt 0:00:01]} 35. Ke2 {[%emt 0:00:01]} f5 {[%emt 0:00:06]} 36. Kd3 {[%emt 0:00:02]} Kf7 {[%emt 0:00:04]} 37. Kc4 {[%emt 0:00:02]} Ke7 {[%emt 0:00:03]} 38. Kxc5 {[%emt 0:00:01]} Nd7+ {[%emt 0:00:12]} 39. Kd4 {[%emt 0:00:02]} Nb6 {[%emt 0:00:02]} 40. Bc6 {[%emt 0:00:06]} Kd6 {[%emt 0:00:01]} 41. Be8 {[%emt 0:00:01]} Nd5 {[%emt 0:00:02]} 42. Bxg6 {[%emt 0:00:05]} Nb4 {[%emt 0:00:02]} 43. h5 {[%emt 0:00:04]} Nc6+ {[%emt 0:00:03]} 44. Kc3 {[%emt 0:00:04]} Ne7 {[%emt 0:00:03]} 45. Bf7 {[%emt 0:00:03]} Kd5 {[%emt 0:00:06]} 46. h6 {[%emt 0:00:04]} gxh6 {[%emt 0:00:02]} 47. gxh6 {[%emt 0:00:02]} Ke4 {[%emt 0:00:02]} 48. h7 {[%emt 0:00:03]} Kxe3 {[%emt 0:00:02]} 49. h8=Q {[%emt 0:00:03]} Nd5+ {[%emt 0:00:01]} 50. Kb3 {[%emt 0:00:04]} Nxf4 {[%emt 0:00:02]} 51. Qe5+ {[%emt 0:00:03]} Kf3 {[%emt 0:00:01]} 52. Bxe6 {[%emt 0:00:03]} Nxe6 {[%emt 0:00:04]} 53. Qxe6 {[%emt 0:00:02]} f4 {[%emt 0:00:00]} 54. Qf5 {[%emt 0:00:01]} Ke3 {[%emt 0:00:01]} 55. Kc4 {[%emt 0:00:02]} f3 {[%emt 0:00:00]} 56. Qd3+ {[%emt 0:00:01]} Kf4 {[%emt 0:00:02]} 57. Qf1 {[%emt 0:00:04]} Ke3 {[%emt 0:00:02]} 58. b4 {[%emt 0:00:04]} f2 {[%emt 0:00:01]} 59. Kb5 {[%emt 0:00:02]} Kf3 {[%emt 0:00:02]} 60. Ka6 {[%emt 0:00:01]} Ke3 {[%emt 0:00:02]} 61. Kxa7 {[%emt 0:00:01]} Kd4 {[%emt 0:00:01]} 62. Ka6 {[%emt 0:00:01]} Kd5 {[%emt 0:00:02]} 63. b5 {[%emt 0:00:01]} Kc5 {[%emt 0:00:01]} 64. b6 {[%emt 0:00:02]} Kc6 {[%emt 0:00:02]} 65. b7 {[%emt 0:00:01]} Kc7 {[%emt 0:00:00]} 66. Qxf2 {[%emt 0:00:01]} Kb8 {[%emt 0:00:02]} 67. Qa7+ {[%emt 0:00:03]} Kc7 {[%emt 0:00:01]} 68. b8=Q+ {[%emt 0:00:02]} Kc6 {[%emt 0:00:01]} 69. Qac7+ {[%emt 0:00:02]} Kd5 {[%emt 0:00:02]} 70. Qbd8+ {[%emt 0:00:01]} Ke6 {[%emt 0:00:01]} 71. Qce7+ {[%emt 0:00:01]} Kf5 {[%emt 0:00:01]} 72. Qdf8+ {[%emt 0:00:00]} Kg6 {[%emt 0:00:02]} 73. Qeg7+ {[%emt 0:00:01]} Kh5 {[%emt 0:00:02]} 74. Qfh8# {[%emt 0:00:00]} 1-0